fUST/lending_fUST_20250911
["ID","MTS","AMOUNT","RATE_DAILY","PERIOD"]
[384846560,1757589049833,-151.0,0.0001962,2]
[384846561,1757589049842,-922.0,0.0001962,2]
[384846562,1757589049852,-173.050102,0.0001962,2]
[384846563,1757589049861,-173.050102,0.0001962,2]
[384846564,1757589049871,-173.050102,0.0001962,2]
[384846565,1757589049880,-173.050092,0.0001962,2]
[384846566,1757589049889,-168.0,0.00019667,2]
[384846567,1757589049899,-168.0,0.0001968,2]
[384846568,1757589049909,-193.65231507,0.00019684,2]
[384846569,1757589049918,-157.0,0.00019684,2]
[384846570,1757589049928,-157.0,0.00019684,2]
[384846571,1757589049937,-157.0,0.00019684,2]
[384846572,1757589049947,-157.0,0.00019684,2]
[384846573,1757589049956,-157.0,0.00019684,2]
[384846574,1757589049966,-302.0,0.00019684,2]
[384846575,1757589049976,-182.82,0.00019684,2]
[384846576,1757589049985,-157.0,0.00019684,2]
[384846577,1757589049995,-157.0,0.00019684,2]
[384846578,1757589050004,-181.67260504,0.00019684,2]
[384846579,1757589050013,-157.0,0.00019684,2]
[384846580,1757589050022,-157.0,0.00019684,2]
[384846581,1757589050031,-157.0,0.00019684,2]
[384846582,1757589050040,-305.86419186,0.00019684,2]
[384846583,1757589050050,-500.0,0.00019684,2]
[384846584,1757589050059,-157.0,0.00019684,2]
[384846585,1757589050068,-157.0,0.00019684,2]
[384846586,1757589050078,-302.0,0.00019684,2]
[384846587,1757589050088,-157.0,0.00019684,2]
[384846588,1757589050097,-168.0,0.00019724,2]
[384846589,1757589050107,-333.76689,0.00019726,2]
[384846590,1757589050117,-333.76689,0.00019726,2]
[384846591,1757589050127,-333.76689,0.00019726,2]
[384846592,1757589050136,-333.76689,0.00019726,2]
[384846593,1757589050146,-888.45,0.00019726,2]
[384846594,1757589050155,-1965.5,0.00019726,2]
[384846595,1757589050166,-480.0,0.00019726,2]
[384846596,1757589050175,-646.64,0.00019726,2]
[384846597,1757589050186,-632.16,0.00019726,2]
[384846598,1757589050196,-637.0,0.00019727,2]
[384846599,1757589050206,-168.0,0.00019838,2]
[384846600,1757589050217,-221.03952615,0.00019871,2]
[384846601,1757589050226,-171.309264,0.000199,2]
[384846602,1757589050235,-151.0,0.000199,2]
[384846603,1757589050245,-151.0,0.000199,2]
[384846604,1757589050254,-151.0,0.000199,2]
[384846605,1757589050264,-168.0,0.00019904,2]
[384846606,1757589050273,-168.0,0.00019919,2]
[384846607,1757589050282,-308.0,0.00019958,2]
[384846608,1757589050291,-157.0,0.00019958,2]
[384846609,1757589050300,-157.0,0.00019958,2]
[384846610,1757589050309,-157.0,0.00019958,2]
[384846611,1757589050319,-157.0,0.00019958,2]
[384846612,1757589050328,-519.0,0.00019958,2]
[384846613,1757589050338,-157.0,0.00019958,2]
[384846614,1757589050348,-197.839427,0.00019958,2]
[384846615,1757589050357,-168.0,0.00019971,2]
[384846616,1757589050367,-637.0,0.00019991,2]
[384846617,1757589050377,-6143.23782436,0.00019998,2]
[384846618,1757589050386,-11724.89202529,0.00019998,2]
[384846619,1757589050489,-151.0,0.00014246,2]
[384846620,1757589050500,-4335.9999999,0.00019998,2]
[384846621,1757589050557,-165.566439,0.00015342,2]
[384846622,1757589050566,-912.2928506,0.00019998,2]
[384846623,1757589050579,-3706.53489994,0.00019998,2]
[384846624,1757589050590,-429.42624312,0.00019998,2]
[384846625,1757589050678,-1902.69277159,0.00019998,2]
[384846626,1757589050692,-23662.29301718,0.00019998,2]
[384846627,1757589050860,-168.0,0.00013561,2]
[384846628,1757589050870,-160.0,0.00014329,2]
[384846629,1757589050879,-189.2954919,0.00019998,2]
[384846630,1757589050889,-140.82300253,0.00019998,2]
[384846631,1757589050901,-10.17699747,0.00019998,2]
[384846632,1757589050911,-151.0,0.00019998,2]
[384846633,1757589050921,-151.0,0.00019998,2]
[384846634,1757589050930,-151.0,0.00019998,2]
[384846635,1757589050939,-151.0,0.00019998,2]
[384846636,1757589050948,-151.0,0.00019998,2]
[384846637,1757589050957,-304.322664,0.00019998,2]
[384846638,1757589050966,-304.322664,0.00019998,2]
[384846639,1757589050977,-304.322664,0.00019998,2]
[384846640,1757589050987,-304.322664,0.00019998,2]
[384846641,1757589050996,-151.0,0.00019998,2]
[384846642,1757589051006,-151.0,0.00019998,2]
[384846643,1757589051016,-151.0,0.00019998,2]
[384846644,1757589051026,-239.95523434,0.00019998,2]
[384846645,1757589051039,-22.39878166,0.00019998,2]
[384846646,1757589051051,-262.354016,0.00019998,2]
[384846647,1757589051060,-151.0,0.00019998,2]
[384846648,1757589051070,-262.354016,0.00019998,2]
[384846649,1757589051080,-262.354016,0.00019998,2]
[384846650,1757589051089,-151.0,0.00019998,2]
[384846651,1757589051099,-151.0,0.00019998,2]
[384846652,1757589051107,-151.0,0.00019998,2]
[384846653,1757589051117,-151.0,0.00019998,2]
[384846654,1757589051127,-151.0,0.00019998,2]
[384846655,1757589051136,-713.620105,0.00019998,2]
[384846656,1757589051145,-713.620105,0.00019998,2]
[384846657,1757589051154,-713.620105,0.00019998,2]
[384846658,1757589051163,-713.62010476,0.00019998,2]
[384846659,1757589051172,-223.981978,0.00019998,2]
[384846660,1757589051182,-151.0,0.00019998,2]
[384846661,1757589051191,-444.812478,0.00019998,2]
[384846662,1757589051201,-151.0,0.00019998,2]
[384846663,1757589051211,-444.812478,0.00019998,2]
[384846664,1757589051223,-444.812478,0.00019998,2]
[384846665,1757589051233,-444.812468,0.00019998,2]
[384846666,1757589051244,-392.886006,0.00019998,2]
[384846667,1757589051253,-392.886006,0.00019998,2]
[384846668,1757589051263,-392.886006,0.00019998,2]
[384846669,1757589051272,-392.885998,0.00019998,2]
[384846670,1757589051281,-443.45816,0.00019998,2]
[384846671,1757589051290,-151.0,0.00019998,2]
[384846672,1757589051300,-443.45816,0.00019998,2]
[384846673,1757589051309,-443.45816,0.00019998,2]
[384846674,1757589051318,-443.458154,0.00019998,2]
[384846675,1757589051327,-151.0,0.00019998,2]
[384846676,1757589051336,-151.0,0.00019998,2]
[384846677,1757589051345,-228.874365,0.00019998,2]
[384846678,1757589051358,-228.874365,0.00019998,2]
[384846679,1757589051371,-151.0,0.00019998,2]
[384846680,1757589051381,-228.874365,0.00019998,2]
[384846681,1757589051392,-151.0,0.00019998,2]
[384846682,1757589051402,-228.874357,0.00019998,2]
[384846683,1757589051413,-241.597104,0.00019998,2]
[384846684,1757589051422,-128.63882964,0.00019998,2]
[384846685,1757589051545,-11784.8114152,0.000199,2]
[384846686,1757589051555,-22.36117036,0.00019998,2]
[384846687,1757589051565,-151.0,0.00019998,2]
[384846688,1757589051576,-213.277159,0.00019998,2]
[384846689,1757589051587,-151.0,0.00019998,2]
[384846690,1757589051596,-151.0,0.00019998,2]
[384846691,1757589051605,-4000.0,0.0002,4]
[384846692,1757589051614,-888.5136727,0.0002,2]
[384846693,1757589051624,-1965.59471521,0.0002,2]
[384846694,1757589051633,-393.93213717,0.0002,2]
[384846695,1757589051643,-646.76,0.0002,2]
[384846696,1757589051740,-632.20906239,0.0002,2]
[384846697,1757589051749,-976.0,0.00020042,2]
[384846698,1757589051759,-634.0,0.00020042,2]
[384846699,1757589051768,-2153.0,0.00020042,2]
[384846700,1757589051779,-410.047547,0.00020187,2]
[384846701,1757589051790,-212.0,0.000202,2]
[384846702,1757589051799,-1475.599999,0.000202,2]
[384846703,1757589051808,-186.0,0.00020232,2]
[384846704,1757589051817,-157.0,0.00020232,2]
[384846705,1757589051826,-168.0,0.00020269,2]
[384846706,1757589051836,-12500.0,0.00020273,7]
[384846707,1757589051845,-333.76689,0.00020275,2]
[384846708,1757589051854,-333.76689,0.00020275,2]
[384846709,1757589051864,-333.76689,0.00020275,2]
[384846710,1757589051874,-333.76689,0.00020275,2]
[384846711,1757589051883,-417.15472785,0.0002028,7]
[384846712,1757589051892,-530.95967032,0.0002028,7]
[384846713,1757589051902,-12500.0,0.00020283,7]
[384846714,1757589051911,-151.0,0.00020283,2]
[384846715,1757589051920,-151.0,0.00020283,2]
[384846716,1757589051930,-2346.71163868,0.00020283,7]
[384846717,1757589051939,-151.0,0.00020283,2]
[384846718,1757589051948,-168.0,0.00020287,2]
[384846719,1757589051958,-11784.81141517,0.00020327,2]
[384846720,1757589051967,-188.4352839,0.00020356,2]
[384846721,1757589051977,-188.4352839,0.00020356,2]
[384846722,1757589051986,-188.4352839,0.00020356,2]
[384846723,1757589051996,-188.4352839,0.00020356,2]
[384846724,1757589052006,-188.4352839,0.00020356,2]
[384846725,1757589052015,-188.4352839,0.00020356,2]
[384846726,1757589052024,-159.5219439,0.00020356,2]
[384846727,1757589052034,-200.0,0.00020402,2]
[384846728,1757589052043,-560.0,0.00020402,2]
[384846729,1757589052053,-1000.0,0.00020453,20]
[384846730,1757589052062,-244.0,0.00020453,20]
[384846731,1757589052071,-153.0,0.00020483,2]
[384846732,1757589052080,-161.7241878,0.00020483,2]
[384846733,1757589052091,-153.0,0.00020483,2]
[384846734,1757589052099,-153.0,0.00020483,2]
[384846735,1757589052109,-161.7241878,0.00020483,2]
[384846736,1757589052119,-153.0,0.00020483,2]
[384846737,1757589052128,-157.0,0.00020506,2]
[384846738,1757589052137,-180.462584,0.00020548,2]
[384846739,1757589052146,-180.462584,0.00020548,2]
[384846740,1757589052155,-180.462584,0.00020548,2]
[384846741,1757589052165,-180.462584,0.00020548,2]
[384846742,1757589052174,-180.462584,0.00020548,2]
[384846743,1757589052183,-180.462584,0.00020548,2]
[384846744,1757589052192,-180.462584,0.00020548,2]
[384846745,1757589052202,-180.462584,0.00020548,2]
[384846746,1757589052211,-180.462584,0.00020548,2]
[384846747,1757589052220,-180.462584,0.00020548,2]
[384846748,1757589052230,-180.462584,0.00020548,2]
[384846749,1757589052239,-180.462584,0.00020548,2]
[384846750,1757589052249,-180.462584,0.00020548,2]
[384846751,1757589052258,-180.462584,0.00020548,2]
[384846752,1757589052267,-180.462584,0.00020548,2]
[384846753,1757589052278,-180.462584,0.00020548,2]
[384846754,1757589052289,-180.462584,0.00020548,2]
[384846755,1757589052299,-180.462584,0.00020548,2]
[384846756,1757589052308,-180.462584,0.00020548,2]
[384846757,1757589052319,-180.462592,0.00020548,2]
[384846758,1757589052328,-1187.602111,0.00020548,2]
[384846759,1757589052338,-200.0,0.00020606,2]
[384846760,1757589052348,-560.0,0.00020606,2]
[384846761,1757589052361,-2600.0,0.00020712,2]
[384846762,1757589052371,-11784.81141517,0.00020755,2]
[384846763,1757589052380,-151.0,0.00020755,2]
[384846764,1757589052389,-161.498806,0.00020755,2]
[384846765,1757589052399,-151.0,0.00020755,2]
[384846766,1757589052411,-151.0,0.00020755,2]
[384846767,1757589052421,-151.0,0.00020755,2]
[384846768,1757589052430,-151.0,0.00020755,2]
[384846769,1757589052439,-304.322664,0.00020755,2]
[384846770,1757589052449,-304.322664,0.00020755,2]
[384846771,1757589052458,-304.322664,0.00020755,2]
[384846772,1757589052468,-304.322672,0.00020755,2]
[384846773,1757589052477,-151.0,0.00020755,2]
[384846774,1757589052487,-151.0,0.00020755,2]
[384846775,1757589052496,-151.0,0.00020755,2]
[384846776,1757589052511,-262.354016,0.00020755,2]
[384846777,1757589052520,-151.0,0.00020755,2]
[384846778,1757589052530,-262.354016,0.00020755,2]
[384846779,1757589052539,-262.354016,0.00020755,2]
[384846780,1757589052550,-262.354017,0.00020755,2]
[384846781,1757589052560,-151.0,0.00020755,2]
[384846782,1757589052570,-151.0,0.00020755,2]
[384846783,1757589052579,-151.0,0.00020755,2]
[384846784,1757589052588,-151.0,0.00020755,2]
[384846785,1757589052599,-157.0,0.0002078,2]
[384846786,1757589052608,-200.0,0.00020812,2]
[384846787,1757589052617,-560.0,0.00020812,2]
[384846788,1757589052626,-2050.23280944,0.00020999,2]
[384846789,1757589052637,-3000.0,0.00021,2]
[384846790,1757589052647,-500.0,0.00021002,2]
[384846791,1757589052656,-3000.0,0.0002101,2]
[384846792,1757589052666,-3000.0,0.0002102,2]
[384846793,1757589052675,-3000.0,0.0002103,2]
[384846794,1757589052684,-3000.0,0.0002104,2]
[384846795,1757589052694,-3000.0,0.0002105,2]
[384846796,1757589052703,-215.0,0.00021054,2]
[384846797,1757589052712,-500.0,0.00021059,2]
[384846798,1757589052722,-3000.0,0.0002106,2]
[384846799,1757589052732,-5937.16886,0.0002107,2]
[384846800,1757589052742,-333.76689,0.0002107,2]
[384846801,1757589052751,-333.76689,0.0002107,2]
[384846802,1757589052760,-333.76689,0.0002107,2]
[384846803,1757589052768,-333.766889,0.0002107,2]
[384846804,1757589052778,-158.06285908,0.0002128,2]
[384846805,1757589052787,-160.79622075,0.00021439,2]
[384846806,1757589052797,-142413.72982612,0.0002144,2]
[384846807,1757589052809,-1629.38357076,0.0002144,2]
[384846808,1757589052823,-1011.63711006,0.00021182,2]
[384846809,1757589052837,-1802.59948595,0.00021182,2]
[384846810,1757589052849,-8970.57481916,0.00021182,2]
[384846811,1757589052858,-55956.88660312,0.0002144,2]
[384846812,1757589052867,-151.0,0.0002144,2]
[384846813,1757589052877,-151.0,0.0002144,2]
[384846814,1757589052887,-151.0,0.0002144,2]
[384846815,1757589052897,-151.0,0.0002144,2]
[384846816,1757589052906,-151.0,0.0002144,2]
[384846817,1757589052917,-151.0,0.0002144,2]
[384846818,1757589052927,-151.0,0.0002144,2]
[384846819,1757589052936,-1500.0,0.0002144,14]
[384846820,1757589052945,-1500.0,0.0002144,14]
[384846821,1757589052954,-1500.0,0.0002144,14]
[384846822,1757589052963,-1500.0,0.0002144,14]
[384846823,1757589052973,-1500.0,0.0002144,14]
[384846824,1757589052983,-1500.0,0.0002144,14]
[384846825,1757589052992,-249.24609,0.0002144,14]
[384846826,1757589053001,-500.0,0.00021473,2]
[384846827,1757589053010,-500.0,0.00021473,2]
[384846828,1757589053019,-316.13643424,0.00021473,2]
[384846829,1757589053028,-316.61507789,0.00021473,2]
[384846830,1757589053038,-12247.70793123,0.000215,2]
[384846831,1757589053048,-1000.0,0.0002155,2]
[384846832,1757589053057,-158.966035,0.00021564,2]
[384846833,1757589053066,-166.0,0.000216,2]
[384846834,1757589053076,-203.98506812,0.000216,2]
[384846835,1757589053086,-11784.81141517,0.0002161,2]
[384846836,1757589053095,-605.99764179,0.000218,2]
[384846837,1757589053105,-2600.0,0.00021808,2]
[384846838,1757589053114,-221.03952615,0.0002187,2]
[384846839,1757589053123,-6984.06387741,0.0002187,2]
[384846840,1757589053133,-3707.75549307,0.0002188,2]
[384846841,1757589053142,-357.00433123,0.000219,2]
[384846842,1757589053151,-1000.0,0.000219,7]
[384846843,1757589053162,-153.0,0.00021918,2]
[384846844,1757589053171,-153.0,0.00021918,2]
[384846845,1757589053180,-153.0,0.00021918,2]
[384846846,1757589053189,-153.0,0.00021918,2]
[384846847,1757589053199,-153.0,0.00021918,2]
[384846848,1757589053208,-153.0,0.00021918,2]
[384846849,1757589053218,-153.0,0.00021918,2]
[384846850,1757589053226,-153.0,0.00021918,2]
[384846851,1757589053235,-153.0,0.00021918,2]
[384846852,1757589053244,-153.0,0.00021918,2]
[384846853,1757589053253,-153.0,0.00021918,2]
[384846854,1757589053262,-153.0,0.00021918,2]
[384846855,1757589053272,-153.0,0.00021918,2]
[384846856,1757589053281,-153.0,0.00021918,2]
[384846857,1757589053289,-153.0,0.00021918,2]
[384846858,1757589053299,-153.0,0.00021918,2]
[384846859,1757589053308,-153.0,0.00021918,2]
[384846860,1757589053317,-153.0,0.00021918,2]
[384846861,1757589053326,-153.0,0.00021918,2]
[384846862,1757589053335,-153.0,0.00021918,2]
[384846863,1757589053344,-153.0,0.00021918,2]
[384846864,1757589053353,-153.0,0.00021918,2]
[384846865,1757589053362,-153.0,0.00021918,2]
[384846866,1757589053371,-153.0,0.00021918,2]
[384846867,1757589053382,-153.0,0.00021918,2]
[384846868,1757589053390,-153.0,0.00021918,2]
[384846869,1757589053400,-153.0,0.00021918,2]
[384846870,1757589053409,-153.0,0.00021918,2]
[384846871,1757589053419,-153.0,0.00021918,2]
[384846872,1757589053428,-153.0,0.00021918,2]
[384846873,1757589053437,-1472.0463564,0.00021918,7]
[384846874,1757589053447,-151.0,0.00021918,2]
[384846875,1757589053456,-151.0,0.00021918,2]
[384846876,1757589053465,-151.0,0.00021918,2]
[384846877,1757589053475,-151.0,0.00021918,2]
[384846878,1757589053485,-151.0,0.00021918,2]
[384846879,1757589053495,-151.0,0.00021918,2]
[384846880,1757589053505,-151.0,0.00021918,2]
[384846881,1757589053518,-151.0,0.00021918,2]
[384846882,1757589053528,-151.0,0.00021918,2]
[384846883,1757589053538,-151.0,0.00021918,2]
[384846884,1757589053547,-151.0,0.00021918,2]
[384846885,1757589053559,-151.0,0.00021918,2]
[384846886,1757589053569,-151.0,0.00021918,2]
[384846887,1757589053578,-151.0,0.00021918,2]
[384846888,1757589053589,-151.0,0.00021918,2]
[384846889,1757589053599,-151.0,0.00021918,2]
[384846890,1757589053607,-151.0,0.00021918,2]
[384846891,1757589053617,-151.0,0.00021918,2]
[384846892,1757589053703,-151.0,0.00021918,2]
[384846893,1757589053713,-151.0,0.00021918,2]
[384846894,1757589053724,-151.0,0.00021918,2]
[384846895,1757589053733,-151.0,0.00021918,2]
[384846896,1757589053743,-151.0,0.00021918,2]
[384846897,1757589053752,-151.0,0.00021918,2]
[384846898,1757589053762,-151.0,0.00021918,2]
[384846899,1757589053771,-151.0,0.00021918,2]
[384846900,1757589053781,-151.0,0.00021918,2]
[384846901,1757589053791,-151.0,0.00021918,2]
[384846902,1757589053801,-151.0,0.00021918,2]
[384846903,1757589053812,-172.23163197,0.00021918,2]
[384846904,1757589053821,-151.0,0.00021918,2]
[384846905,1757589053831,-151.0,0.00021918,2]
[384846906,1757589053840,-151.0,0.00021918,2]
[384846907,1757589053849,-151.0,0.00021918,2]
[384846908,1757589053859,-151.0,0.00021918,2]
[384846909,1757589053869,-151.0,0.00021918,2]
[384846910,1757589053879,-151.0,0.00021918,2]
[384846911,1757589053889,-151.0,0.00021918,2]
[384846912,1757589053898,-151.0,0.00021918,2]
[384846913,1757589053908,-151.0,0.00021918,2]
[384846914,1757589053917,-151.0,0.00021918,2]
[384846915,1757589053927,-151.0,0.00021918,2]
[384846916,1757589053936,-151.0,0.00021918,2]
[384846917,1757589053946,-151.0,0.00021918,2]
[384846918,1757589053955,-151.0,0.00021918,2]
[384846919,1757589053965,-151.0,0.00021918,2]
[384846920,1757589053974,-151.0,0.00021918,2]
[384846921,1757589053984,-151.0,0.00021918,2]
[384846922,1757589053993,-151.0,0.00021918,2]
[384846923,1757589054003,-151.0,0.00021918,2]
[384846924,1757589054012,-151.0,0.00021918,2]
[384846925,1757589054021,-151.0,0.00021918,2]
[384846926,1757589054030,-151.0,0.00021918,2]
[384846927,1757589054040,-151.0,0.00021918,2]
[384846928,1757589054050,-151.0,0.00021918,2]
[384846929,1757589054059,-151.0,0.00021918,2]
[384846930,1757589054068,-151.0,0.00021918,2]
[384846931,1757589054078,-151.0,0.00021918,2]
[384846932,1757589054088,-151.0,0.00021918,2]
[384846933,1757589054098,-203.78244677,0.00021969,2]
[384846934,1757589054107,-378199.80036129,0.0002197,15]
[384846935,1757589054268,168.0,0.00013425,2]
[384846936,1757589071770,353.47,0.00023,120]
[384846937,1757589247146,180.27920779,0.000145,9]
[384846938,1757589255241,1622.57329759,0.000145,9]
[384846945,1757589476310,-225.04068905,0.0001356,2]
[384846946,1757589671810,-152.0,0.00013559,2]
[384846947,1757589675883,-148.0,0.00013559,2]
[384846948,1757589696695,300.0,0.00013423,2]
[384846949,1757589720384,300.0,0.00013423,2]
[384846950,1757589722445,441.934562,0.00027397,120]
[384846951,1757589739095,1444.0,0.00026137,120]
[384846952,1757589743399,2057.04408724,0.000145,9]
[384846955,1757589867119,300.0,0.00013423,2]
[384846957,1757589893494,-168.5724761,0.0001356,2]
[384846958,1757589896521,-300.0,0.0001356,2]
[384846959,1757589900812,-157.62398512,0.0001356,2]
[384846960,1757589903784,-219.48537938,0.0001356,2]
[384846962,1757589980761,740.69492543,0.00013424,2]
[384846970,1757590015707,222.48382484,0.00013286,2]
[384846983,1757590080868,507.37887602,0.00013424,2]
[384846984,1757590080892,566.97449647,0.00013424,2]
[384846993,1757590103775,300.0,0.00013559,2]
[384846996,1757590128055,300.0,0.00013559,2]
[384846999,1757590191480,300.0,0.00013559,2]
[384847000,1757590216819,300.0,0.00013559,2]
[384847046,1757590232109,-300.0,0.00013696,2]
[384847048,1757590232119,-162.16042115,0.00013697,2]
[384847050,1757590232129,-279.104972,0.00013697,2]
[384847052,1757590232140,-220.895028,0.00013697,2]
[384847054,1757590232150,-500.0,0.00013697,2]
[384847056,1757590232159,-20.64913051,0.00013697,2]
[384847059,1757590232171,-479.35086949,0.00013697,2]
[384847060,1757590232181,-573.74591589,0.00013697,2]
[384847061,1757590232190,-500.0,0.00013697,2]
[384847062,1757590232201,-500.0,0.00013697,2]
[384847063,1757590232210,-500.0,0.00013697,2]
[384847064,1757590232220,-500.0,0.00013697,2]
[384847066,1757590232230,-500.0,0.00013697,2]
[384847067,1757590232240,-500.0,0.00013697,2]
[384847068,1757590232249,-500.0,0.00013697,2]
[384847069,1757590232258,-207.78966634,0.00013697,2]
[384847070,1757590232267,-217.18608567,0.00013697,2]
[384847071,1757590232277,-228.59031964,0.00013697,2]
[384847072,1757590232287,-194.69507637,0.00013697,2]
[384847073,1757590232297,-480.0,0.00013698,2]
[384847074,1757590232307,-485.58859282,0.00013698,2]
[384847076,1757590232317,-480.0,0.00013698,2]
[384847083,1757590232435,-480.0,0.00013698,2]
[384847084,1757590232445,-480.0,0.00013698,2]
[384847085,1757590232455,-480.0,0.00013698,2]
[384847086,1757590232465,-480.0,0.00013698,2]
[384847087,1757590232476,-480.0,0.00013698,2]
[384847088,1757590232486,-480.0,0.00013698,2]
[384847089,1757590232495,-480.0,0.00013698,2]
[384847090,1757590232506,-480.0,0.00013698,2]
[384847091,1757590232516,-480.0,0.00013698,2]
[384847092,1757590232526,-273.85820131,0.00013698,2]
[384847093,1757590232542,-206.14179869,0.00013698,2]
[384847094,1757590232551,-480.0,0.00013698,2]
[384847095,1757590232563,-480.0,0.00013698,2]
[384847096,1757590232572,-480.0,0.00013698,2]
[384847097,1757590232582,-480.0,0.00013698,2]
[384847098,1757590232592,-287.06538295,0.00013698,2]
[384847122,1757590237994,-192.93461705,0.00013698,2]
[384847124,1757590238005,-108.7771157,0.00013698,2]
[384847126,1757590238016,-371.2228843,0.00013698,2]
[384847128,1757590238025,-480.0,0.00013698,2]
[384847130,1757590238035,-480.0,0.00013698,2]
[384847132,1757590238044,-480.0,0.00013698,2]
[384847134,1757590238054,-359.39080446,0.00013698,2]
[384847137,1757590238073,-120.60919554,0.00013698,2]
[384847139,1757590238082,-480.0,0.00013698,2]
[384847141,1757590238091,-480.0,0.00013698,2]
[384847143,1757590238100,-484.3381013,0.00013698,2]
[384847145,1757590238109,-480.0,0.00013698,2]
[384847147,1757590238118,-235.55102343,0.00013698,2]
[384847149,1757590238127,-489.52296064,0.00013698,2]
[384847151,1757590238136,-488.59332235,0.00013698,2]
[384847153,1757590238146,-480.0,0.00013698,2]
[384847155,1757590238155,-263.05,0.00013698,2]
[384847157,1757590238163,-480.0,0.00013698,2]
[384847159,1757590238172,-480.0,0.00013698,2]
[384847161,1757590238181,-480.0,0.00013698,2]
[384847163,1757590238190,-480.0,0.00013698,2]
[384847165,1757590238200,-480.0,0.00013698,2]
[384847167,1757590238209,-480.0,0.00013698,2]
[384847169,1757590238218,-62.67661256,0.00013698,2]
[384847173,1757590238245,-417.32338744,0.00013698,2]
[384847176,1757590238259,-480.0,0.00013698,2]
[384847177,1757590238272,-480.0,0.00013698,2]
[384847178,1757590238282,-480.0,0.00013698,2]
[384847179,1757590238294,-480.0,0.00013698,2]
[384847180,1757590238307,-480.0,0.00013698,2]
[384847181,1757590238318,-435.60538689,0.00013698,2]
[384847182,1757590238331,-151.73784694,0.00013698,2]
[384847183,1757590238344,-480.0,0.00013698,2]
[384847185,1757590238356,-484.21622238,0.00013698,2]
[384847187,1757590238368,-377.04068905,0.00013698,2]
[384847190,1757590238381,-243.99611491,0.00013698,2]
[384847192,1757590238394,-480.0,0.00013698,2]
[384847194,1757590238406,-480.0,0.00013698,2]
[384847197,1757590238418,-480.0,0.00013698,2]
[384847199,1757590238433,-480.0,0.00013698,2]
[384847201,1757590238444,-480.0,0.00013698,2]
[384847203,1757590238455,-480.0,0.00013698,2]
[384847205,1757590238468,-536.72782606,0.00013698,2]
[384847206,1757590238481,-480.0,0.00013698,2]
[384847208,1757590238492,-480.0,0.00013698,2]
[384847210,1757590238505,-480.0,0.00013698,2]
[384847212,1757590238515,-480.0,0.00013698,2]
[384847214,1757590238526,-324.99257198,0.00013698,2]
[384847217,1757590238538,-480.0,0.00013698,2]
[384847219,1757590238549,-480.0,0.00013698,2]
[384847221,1757590238561,-480.0,0.00013698,2]
[384847223,1757590238573,-480.0,0.00013698,2]
[384847226,1757590238585,-480.0,0.00013698,2]
[384847228,1757590238597,-480.0,0.00013698,2]
[384847231,1757590238610,-480.0,0.00013698,2]
[384847233,1757590238622,-480.0,0.00013698,2]
[384847235,1757590238634,-480.0,0.00013698,2]
[384847238,1757590238647,-480.0,0.00013698,2]
[384847239,1757590238658,-480.0,0.00013698,2]
[384847241,1757590238667,-480.0,0.00013698,2]
[384847242,1757590238677,-480.0,0.00013698,2]
[384847244,1757590238688,-480.0,0.00013698,2]